bitfinex-derivatives/quotes_ETHF0:USTF0_20210107
["timestamp","ask_amount","ask_price","bid_price","bid_amount"]
[1610046908486,2.9366,1189.2,1186.9,2.3529]
[1610046908685,2.9366,1189.2,1188.4,4.00959]
[1610046909385,2.9366,1189.2,1187.0,5.8126]
[1610046910386,2.9366,1189.2,1184.6,30.0]
[1610046910587,2.9366,1189.2,1186.1,65.5278]
[1610046910789,4.00959,1188.2,1186.1,65.5278]
[1610046910987,6.52569,1188.2,1186.2,5.9831]
[1610046911394,6.52569,1188.2,1185.3,68.5042]
[1610046911787,14.36329,1188.2,1185.3,68.5042]
[1610046912788,4.00959,1186.4,1185.6,4.00959]
[1610046913192,6.33479,1186.4,1185.6,4.00959]
[1610046914390,6.33479,1186.4,1184.3,68.3057]
[1610046914790,4.00959,1185.4,1185.0,4.00959]
[1610046914991,6.17109,1185.4,1185.0,4.00959]
[1610046915894,6.17109,1185.4,1183.7,54.2623]
[1610046916093,6.17109,1185.4,1180.0,0.4]
[1610046916292,6.17109,1185.4,1182.4,66.1791]
[1610046916492,6.17109,1185.4,1182.4,69.2002]
[1610046916692,4.00959,1184.9,1182.4,69.2002]
[1610046916892,6.86209,1184.9,1182.4,69.2002]
[1610046918298,6.86209,1184.9,1182.4,66.1791]
[1610046918495,2.8525,1184.9,1182.4,66.1791]
[1610046918697,2.8525,1184.9,1184.0,4.00959]
[1610046919097,2.8525,1184.9,1183.4,59.0505]
[1610046920698,2.8525,1184.9,1184.4,4.00959]
[1610046920899,2.8525,1184.9,1183.4,59.0505]
[1610046921700,2.8525,1184.9,1181.5,30.0]
[1610046921899,2.8525,1184.9,1181.9,58.2236]
[1610046922099,4.00959,1185.3,1181.9,88.2236]
[1610046923402,4.00959,1185.3,1181.9,58.2236]
[1610046923802,4.00959,1185.3,1181.9,88.2236]
[1610046924301,2.1615,1185.4,1181.9,88.2236]
[1610046924503,2.3252,1186.4,1181.9,88.2236]
[1610046924904,57.416,1186.6,1181.9,90.2646]
[1610046926005,5.48389257,1187.3,1181.9,32.041]
[1610046926203,5.48389257,1187.3,1183.6,47.5115]
[1610046926404,5.48389257,1187.3,1183.7,32.3045]
[1610046926804,4.00959,1186.6,1183.7,32.3045]
[1610046927004,6.31749,1186.6,1183.7,32.3045]
[1610046927405,6.31749,1186.6,1183.7,2.3045]
[1610046928807,2.3079,1186.6,1183.7,2.3045]
[1610046929407,2.3079,1186.6,1183.8,30.0]
[1610046930509,2.3079,1186.6,1183.7,2.3045]
[1610046930710,4.00959,1186.5,1185.8,4.00959]
[1610046931110,2.3079,1186.6,1185.8,4.00959]
[1610046932110,2.7017,1187.1,1185.8,4.00959]
[1610046932312,5.50047558,1188.5,1185.8,34.00959]
[1610046932513,5.49213161,1188.3,1185.8,34.00959]
[1610046932714,5.49213161,1188.3,1188.2,4.00959]
[1610046932914,5.49213161,1188.3,1185.8,32.1432]
[1610046933413,5.49213161,1188.3,1185.8,2.1432]
[1610046933615,5.49213161,1188.3,1185.8,32.1432]
[1610046934513,66.2651,1189.3,1185.8,32.1432]
[1610046934714,4.00959,1188.6,1187.6,4.00959]
[1610046934913,2.9979,1188.6,1187.6,4.00959]
[1610046935715,2.9979,1188.6,1187.1,58.9533]
[1610046936517,3.07,1189.2,1187.1,88.9533]
[1610046936717,3.07,1189.2,1189.1,4.00959]
[1610046937825,5.53600355,1190.2,1189.1,4.00959]
[1610046938625,5.53600355,1190.2,1189.1,13.44539]
[1610046938824,5.53600355,1190.2,1189.9,4.00959]
[1610046939023,16.8232889,1190.3,1189.9,4.00959]
[1610046939024,4.00959,1190.4,1189.9,4.00959]
[1610046939825,8.99974939,1190.9,1189.9,4.00959]
[1610046940224,9.03061546,1191.6,1189.9,4.00959]
[1610046940825,4.00959,1191.2,1191.0,4.00959]
[1610046941024,6.17379,1191.2,1189.4,55.0975]
[1610046941625,6.17379,1191.2,1189.4,85.0975]
[1610046941825,6.17379,1191.2,1189.4,30.0]
[1610046942025,6.62546659,1192.0,1189.4,30.0]
[1610046942628,6.62546659,1192.0,1189.5,30.0]
[1610046942827,6.62546659,1192.0,1191.9,4.00959]
[1610046943627,6.64488347,1192.9,1191.9,4.00959]
[1610046944828,4.00959,1193.3,1191.9,10.71349]
[1610046945029,4.00959,1193.3,1191.9,4.00959]
[1610046945228,4.00959,1193.3,1192.0,50.3559]
[1610046945628,6.66339286,1193.7,1191.9,4.00959]
[1610046945829,9.66589286,1193.7,1191.9,4.00959]
[1610046946029,3.0025,1193.7,1192.0,62.2368]
[1610046946430,3.0025,1193.7,1192.0,30.0]
[1610046946629,3.0025,1193.7,1192.3,53.9555]
[1610046946830,6.66072005,1194.0,1193.6,4.00959]
[1610046947232,11.70990204,1194.5,1193.6,4.00959]
[1610046948435,11.70990204,1194.5,1193.3,66.6549]
[1610046948634,2.967,1194.5,1193.3,66.6549]
[1610046948834,4.00959,1194.1,1193.6,4.00959]
[1610046949035,6.89559,1194.1,1193.6,4.00959]
[1610046949233,6.89559,1194.1,1193.3,66.6549]
[1610046949836,2.886,1194.1,1193.3,66.6549]
[1610046950838,2.886,1194.1,1194.0,4.00959]
[1610046951039,2.886,1194.1,1193.3,66.6549]
[1610046952338,2.886,1194.1,1193.3,96.6549]
[1610046952838,2.886,1194.1,1194.0,4.00959]
[1610046953038,2.886,1194.1,1193.3,96.6549]
[1610046954241,2.967,1194.5,1193.3,96.6549]
[1610046954439,2.3496,1194.1,1193.3,96.6549]
[1610046954839,2.3496,1194.1,1194.0,4.00959]
[1610046955344,2.3496,1194.1,1194.0,34.00959]
[1610046956745,2.3496,1194.1,1194.0,4.00959]
[1610046957244,2.3496,1194.1,1194.0,34.00959]
[1610046958244,2.3496,1194.1,1194.0,4.00959]
[1610046958444,2.3496,1194.1,1194.0,34.00959]
[1610046959347,0.39981176,1194.6,1194.0,34.00959]
[1610046960748,0.39981176,1194.6,1194.0,4.00959]
[1610046961749,0.39981176,1194.6,1194.0,34.00959]
[1610046962149,0.39981176,1194.6,1194.2,66.1065]
[1610046962348,0.39981176,1194.6,1194.3,30.0]
[1610046962949,0.39981176,1194.6,1194.5,4.00959]
[1610046963150,0.39981176,1194.6,1194.5,34.00959]
[1610046963350,11.77829155,1196.5,1194.5,34.00959]
[1610046963549,11.77829155,1196.5,1195.2,54.4112]
[1610046963750,11.77829155,1196.5,1195.2,84.4112]
[1610046964651,11.77829155,1196.5,1195.2,54.4112]
[1610046964851,0.39981176,1196.8,1196.4,4.00959]
[1610046965252,0.39981176,1196.8,1196.5,63.283]
[1610046966853,0.39981176,1196.8,1196.7,4.00959]
[1610046967855,0.39981176,1196.8,1196.5,63.283]
[1610046968056,2.84111176,1196.8,1196.5,63.283]
[1610046968460,2.84111176,1196.8,1196.5,23.5473]
[1610046968656,2.84111176,1196.8,1194.3,30.0]
[1610046968857,2.84111176,1196.8,1196.7,4.00959]
[1610046969057,2.84111176,1196.8,1195.1,52.333]
[1610046969659,2.84111176,1196.8,1195.1,82.333]
[1610046970758,2.84111176,1196.8,1195.1,52.333]
[1610046970959,2.84111176,1196.8,1196.7,4.00959]
[1610046971659,2.84111176,1196.8,1194.9,3.1451]
[1610046971859,2.84111176,1196.8,1195.6,66.1463]
[1610046972660,0.39981176,1196.8,1195.6,68.277]
[1610046972860,0.39981176,1196.8,1196.5,4.00959]
[1610046973061,0.39981176,1196.8,1196.6,53.6141]
[1610046973260,20.74976855,1198.9,1196.6,53.6141]
[1610046974262,17.06338147,1198.8,1196.6,53.6141]
[1610046974462,21.35091973,1198.8,1196.6,53.6141]
[1610046974863,4.00959,1197.8,1197.5,4.00959]
[1610046975061,6.20039,1197.8,1196.6,53.6141]
[1610046975461,2.1908,1197.8,1196.6,53.6141]
[1610046976963,2.1908,1197.8,1197.7,4.00959]
[1610046977164,2.1908,1197.8,1196.6,53.6141]
[1610046978966,2.1908,1197.8,1197.7,4.00959]
[1610046979366,2.1908,1197.8,1194.7,1.9816]
[1610046979568,2.1908,1197.8,1195.8,57.5836]
[1610046980167,0.39981176,1198.6,1195.8,57.5836]
[1610046980966,4.00959,1197.9,1197.2,4.00959]
[1610046981168,2.0073,1197.9,1194.0,32.3736]
[1610046981367,2.0073,1197.9,1197.0,53.8188]
[1610046982570,2.0073,1197.9,1197.0,21.9156]
[1610046982970,6.17769,1197.4,1197.1,4.00959]
[1610046983170,6.17769,1197.4,1197.0,21.9156]
[1610046983369,6.17769,1197.4,1194.0,2.3736]
[1610046983569,6.17769,1197.4,1194.8,49.288]
[1610046983771,6.17769,1197.4,1195.0,58.0001]
[1610046984171,2.1681,1197.4,1195.0,60.9565]
[1610046984371,2.1681,1197.4,1195.0,2.9564]
[1610046984571,2.1681,1197.4,1195.1,64.0083]
[1610046984971,6.17769,1197.4,1195.1,64.0083]
[1610046985173,2.1681,1197.4,1195.1,64.0083]
[1610046985371,0.39981176,1198.6,1195.1,64.0083]
[1610046986473,0.39981176,1198.6,1195.0,2.9564]
[1610046986672,2.78801176,1198.6,1196.1,51.3172]
[1610046986872,2.78801176,1198.6,1198.5,4.00959]
[1610046987072,2.78801176,1198.6,1196.1,51.3172]
[1610046988877,2.78801176,1198.6,1198.4,4.00959]
[1610046989077,2.78801176,1198.6,1196.1,51.3172]
[1610046990681,0.39981176,1198.6,1196.1,51.3172]
[1610046990881,0.39981176,1198.6,1198.4,4.00959]
[1610046991282,0.39981176,1198.6,1197.7,64.7044]
[1610046992180,2.79521176,1198.6,1197.7,64.7044]
[1610046992982,2.79521176,1198.6,1198.0,4.00959]
[1610046994884,2.79521176,1198.6,1198.5,4.00959]
[1610046995085,2.79521176,1198.6,1197.7,64.7044]
[1610046996886,2.79521176,1198.6,1198.3,4.00959]
[1610046997487,3.1388,1199.1,1198.3,4.00959]
[1610046997686,21.73256062,1200.6,1198.3,4.00959]
[1610046998087,21.73256062,1200.6,1199.0,58.6319]
[1610046998689,0.39981176,1200.6,1199.0,58.6319]
[1610046998889,0.39981176,1200.6,1200.5,4.00959]
[1610046999192,0.39981176,1200.6,1198.9,2.2391]
[1610046999390,3.19821176,1200.6,1200.2,59.468]
[1610047000392,3.19821176,1200.6,1200.2,41.1986]
[1610047000892,3.19821176,1200.6,1200.5,4.00959]
[1610047001094,3.19821176,1200.6,1200.2,41.1986]
[1610047001292,3.19821176,1200.6,1197.9,2.0885]
[1610047001492,3.19821176,1200.6,1197.5,57.1981]
[1610047003093,6.00549,1199.5,1197.5,57.1981]
[1610047003292,1.9959,1199.5,1197.5,57.1981]
[1610047003493,1.9959,1199.5,1197.5,87.1981]
[1610047003993,1.9959,1199.5,1197.5,30.0]
[1610047004495,1.9959,1199.5,1198.1,54.5047]
[1610047004896,1.9959,1199.5,1199.4,4.00959]
[1610047007899,1.9959,1199.5,1198.4,57.1586]
[1610047008302,3.19821176,1200.6,1198.4,57.1586]
[1610047008502,2.6501,1199.5,1198.4,57.1586]
[1610047009003,2.6501,1199.5,1199.4,4.00959]
[1610047011305,2.6501,1199.5,1199.4,34.00959]
[1610047011504,2.6501,1199.5,1199.4,43.04559]
[1610047012205,2.6501,1199.5,1199.4,13.04559]
[1610047013208,2.6501,1199.5,1199.4,43.04559]
[1610047013510,3.19821176,1200.6,1199.4,43.04559]
[1610047013908,3.19821176,1200.6,1199.4,34.00959]
[1610047014108,3.19821176,1200.6,1199.6,46.7382]
[1610047014309,3.19821176,1200.6,1199.7,30.0]
[1610047015109,3.19821176,1200.6,1200.5,4.00959]
[1610047015511,3.19821176,1200.6,1199.6,46.7382]
[1610047017114,3.19821176,1200.6,1199.6,76.7382]
[1610047018114,3.19821176,1200.6,1199.6,46.7382]
[1610047018513,3.19821176,1200.6,1199.7,30.0]
[1610047019114,3.19821176,1200.6,1200.5,4.00959]
[1610047019315,3.19821176,1200.6,1200.5,34.00959]
[1610047020316,3.19821176,1200.6,1200.5,4.00959]
[1610047021516,3.19821176,1200.6,1200.5,34.00959]
[1610047022516,0.39981176,1200.6,1200.5,4.00959]
[1610047026218,0.39981176,1200.6,1199.6,46.7382]
[1610047026419,0.39981176,1200.6,1199.5,2.2593]
[1610047026821,0.39981176,1200.6,1199.2,30.0]
[1610047027020,4.00959,1200.0,1199.2,30.0]
[1610047027220,4.00959,1200.0,1198.4,49.921]
[1610047027221,7.18319,1200.0,1198.5,30.0]
[1610047028122,7.18319,1200.0,1198.4,49.921]
[1610047028320,7.18319,1200.0,1196.5,30.0]
[1610047028721,7.18319,1200.0,1196.8,53.0057]
[1610047028921,7.18319,1200.0,1196.9,33.1736]
[1610047029123,7.18319,1200.0,1197.8,4.00959]
[1610047029124,4.00959,1198.6,1197.8,4.00959]
[1610047029522,4.00959,1198.6,1197.8,34.00959]
[1610047029723,3.1392,1199.4,1197.8,34.00959]
[1610047030022,3.1392,1199.4,1197.8,36.15079]
[1610047030422,3.1392,1199.4,1197.8,6.15079]
[1610047030822,3.1392,1199.4,1197.8,2.1412]
[1610047031027,4.00959,1198.2,1197.8,2.1412]
[1610047032526,3.1392,1199.4,1197.8,32.1412]
[1610047033126,4.00959,1198.9,1197.8,32.1412]
[1610047034328,2.6076,1200.3,1197.8,32.1412]
[1610047034930,0.39981176,1200.6,1197.8,32.1412]
[1610047035129,4.00959,1199.8,1198.9,4.00959]
[1610047035729,4.00959,1199.8,1198.9,34.00959]
[1610047037035,4.00959,1199.8,1199.7,4.00959]
[1610047037235,4.00959,1199.8,1199.0,2.7904]
[1610047037634,4.00959,1199.8,1199.0,32.7904]
[1610047038239,0.39981176,1200.6,1199.0,32.7904]
[1610047039141,4.00959,1200.5,1199.7,4.00959]
[1610047039340,4.00959,1200.5,1199.7,34.00959]
[1610047040142,0.39981176,1200.6,1199.7,34.00959]
[1610047040342,0.39981176,1200.6,1199.7,4.00959]
[1610047041142,4.00959,1200.3,1199.7,4.00959]
[1610047041643,4.00959,1200.3,1199.7,34.00959]
[1610047042445,4.00959,1200.3,1199.7,30.0]
[1610047042844,4.00959,1200.3,1199.0,2.7904]
[1610047043044,4.00959,1199.1,1198.7,4.00959]
[1610047043844,2.3526,1200.2,1198.7,4.00959]
[1610047044044,2.3526,1200.2,1198.7,6.32209]
[1610047044445,2.3526,1200.2,1198.7,36.32209]
[1610047044846,1.9354,1200.5,1198.8,49.9129]
[1610047045046,0.39981176,1200.6,1200.1,4.00959]
[1610047046147,0.39981176,1200.6,1199.4,1.9296]
[1610047047048,4.00959,1199.5,1199.4,1.9296]
[1610047047448,4.00959,1199.5,1198.7,2.3125]
[1610047047648,4.00959,1199.5,1198.7,32.3125]
[1610047047849,2.8504,1200.5,1198.7,32.3125]
[1610047048650,2.8504,1200.5,1198.8,30.0]
[1610047049053,4.00959,1199.5,1198.8,30.0]
[1610047049753,4.00959,1199.5,1198.7,2.3125]
[1610047049952,4.00959,1199.5,1197.9,30.0]
[1610047051051,4.00959,1199.1,1198.6,4.00959]
[1610047051251,4.00959,1199.1,1198.6,34.00959]
[1610047052354,4.00959,1199.1,1198.6,4.00959]
[1610047052552,4.00959,1199.1,1198.6,34.00959]
[1610047052953,0.39981176,1200.6,1198.6,34.00959]
[1610047053153,4.00959,1199.5,1198.6,36.31239]
[1610047053352,0.39981176,1200.6,1198.6,36.31239]
[1610047055154,4.00959,1199.8,1199.4,4.00959]
[1610047055354,0.39981176,1200.6,1199.5,30.0]
[1610047055554,0.39981176,1200.6,1199.5,31.9393]
[1610047057060,4.00959,1199.9,1199.5,31.9393]
[1610047057659,0.39981176,1200.6,1199.5,31.9393]
[1610047058262,0.39981176,1200.6,1199.5,1.9393]
[1610047058864,0.39981176,1200.6,1199.1,2.7061]
[1610047059065,4.00959,1199.2,1199.1,2.7061]
[1610047060065,4.00959,1199.2,1199.1,32.7061]
[1610047060263,0.39981176,1200.6,1199.1,32.7061]
[1610047061070,4.00959,1199.5,1199.1,32.7061]
[1610047061673,0.39981176,1200.6,1199.1,32.7061]
[1610047063065,4.00959,1199.2,1199.1,36.71569]
[1610047063266,0.39981176,1200.6,1199.1,36.71569]
[1610047063466,0.6,1200.0,1199.1,36.71569]
[1610047064267,0.39981176,1200.6,1199.1,36.71569]
[1610047065068,4.00959,1200.4,1200.1,4.00959]
[1610047065269,4.00959,1200.4,1200.2,30.0]
[1610047066168,4.00959,1200.4,1199.2,30.0]
[1610047066369,4.00959,1200.4,1200.2,30.0]
[1610047067170,4.00959,1200.4,1200.3,4.00959]
[1610047067369,4.00959,1200.4,1200.3,30.0]
[1610047067770,0.39981176,1200.6,1200.3,30.0]
[1610047068370,0.39981176,1200.6,1200.1,30.0]
[1610047069072,4.00959,1200.2,1200.1,30.0]
[1610047069674,4.00959,1200.2,1200.0,2.8503]
[1610047069875,4.00959,1200.2,1199.7,30.0]
[1610047070675,0.39981176,1200.6,1199.7,30.0]
[1610047071276,4.00959,1200.2,1199.7,30.0]
[1610047073078,4.00959,1199.9,1199.8,4.00959]
[1610047073279,0.39981176,1200.6,1199.9,25.99041]
[1610047073483,0.39981176,1200.6,1199.9,28.79371]
[1610047074279,0.39981176,1200.6,1199.9,2.8033]
[1610047075181,4.00959,1200.0,1199.9,2.8033]
[1610047075384,4.00959,1200.0,1199.6,2.6437]
[1610047075583,4.00959,1200.0,1199.2,25.99041]
[1610047076181,4.00959,1200.0,1199.1,2.7061]
[1610047076583,4.00959,1200.0,1198.7,25.99041]
[1610047077185,4.00959,1198.9,1198.7,25.99041]
[1610047078688,60.82121176,1200.6,1198.4,25.99041]
[1610047078888,47.02551176,1200.6,1198.6,2.9812]
[1610047079088,0.39981176,1200.6,1198.6,2.9812]
[1610047079289,4.00959,1198.7,1198.6,2.9812]
[1610047080287,4.00959,1198.7,1196.8,60.028]
[1610047081289,2.0479,1199.4,1195.6,34.00959]
[1610047081490,62.7349,1198.3,1195.7,30.0]
[1610047081690,62.7349,1198.3,1195.7,32.02]
[1610047082293,2.0479,1199.4,1195.7,32.02]
[1610047082492,2.0479,1199.4,1196.2,47.0937]
[1610047082692,2.3454,1199.7,1196.3,30.0]
[1610047082892,9.19071962,1200.4,1196.3,30.0]
[1610047083095,22.4578279,1200.1,1196.3,30.0]
[1610047084696,77.50080509,1200.6,1196.3,30.0]
[1610047084697,0.39981176,1200.6,1197.2,66.5895]
[1610047084895,0.39981176,1200.6,1197.3,30.0]
[1610047085295,4.00959,1199.4,1198.9,4.00959]
[1610047085495,4.00959,1199.4,1199.0,30.0]
[1610047085696,0.39981176,1200.6,1199.0,32.2385]
[1610047085897,0.39981176,1200.6,1199.0,94.1508]
[1610047087298,4.00959,1200.1,1199.0,32.2385]
[1610047087999,4.00959,1200.1,1199.1,30.0]
[1610047088999,4.00959,1200.1,1199.0,2.2385]
[1610047089199,4.00959,1199.3,1199.0,2.2385]
[1610047089699,0.39981176,1200.6,1199.0,2.2385]
[1610047090700,0.39981176,1200.6,1198.3,77.1992]
[1610047090899,0.39981176,1200.6,1199.0,1.9415]
[1610047091299,3.00959,1199.4,1199.0,1.9415]
[1610047091499,0.39981176,1200.6,1199.0,1.9415]
[1610047091899,0.39981176,1200.6,1199.0,70.4859]
[1610047092099,0.39981176,1200.6,1199.1,30.0]
[1610047092498,0.39981176,1200.6,1199.0,1.9415]
[1610047094102,0.39981176,1200.6,1199.0,55.2202]
[1610047094303,0.39981176,1200.6,1199.1,30.0]
[1610047095305,0.39981176,1200.6,1199.3,4.00959]
[1610047095907,0.39981176,1200.6,1199.3,6.22819]
[1610047096406,0.39981176,1200.6,1199.3,2.2186]
[1610047097208,4.00959,1199.9,1199.3,2.2186]
[1610047097409,0.39981176,1200.6,1199.3,2.2186]
[1610047100913,0.39981176,1200.6,1199.0,1.9415]
[1610047101114,0.39981176,1200.6,1199.3,2.2731]
[1610047101316,0.39981176,1200.6,1199.4,4.00959]
[1610047101516,0.39981176,1200.6,1199.4,34.00959]
[1610047102818,0.39981176,1200.6,1199.4,4.00959]
[1610047103218,4.00959,1200.5,1199.8,4.00959]
[1610047105220,4.00959,1200.1,1199.5,4.00959]
[1610047105419,0.39981176,1200.6,1199.3,2.2731]
[1610047106020,0.39981176,1200.6,1199.0,30.0]
[1610047106219,0.39981176,1200.6,1199.3,2.7351]
[1610047106419,0.39981176,1200.6,1199.4,30.0]
[1610047107320,4.00959,1199.8,1199.3,6.74469]
[1610047108220,4.00959,1199.8,1199.3,2.7351]
[1610047109220,4.00959,1199.6,1199.3,2.7351]
[1610047109720,0.39981176,1200.6,1199.3,2.7351]
[1610047110122,0.39981176,1200.6,1199.3,32.7351]
[1610047111022,0.39981176,1200.6,1199.3,2.7351]
[1610047111222,0.39981176,1200.6,1200.1,4.00959]
[1610047111422,0.39981176,1200.6,1199.3,2.1082]
[1610047115225,4.00959,1199.8,1199.7,4.00959]
[1610047115425,4.00959,1199.8,1199.3,2.1082]
[1610047115625,0.39981176,1200.6,1199.3,2.1082]
[1610047116427,0.39981176,1200.6,1198.7,82.8633]
[1610047117328,0.39981176,1200.6,1200.0,4.00959]
[1610047117528,0.39981176,1200.6,1200.0,6.36309]
[1610047118128,0.39981176,1200.6,1200.0,2.3535]
[1610047119431,0.39981176,1200.6,1200.1,4.00959]
[1610047119636,0.39981176,1200.6,1200.0,2.3535]
[1610047121135,7.052,1202.2,1200.0,2.3535]
[1610047122736,7.052,1202.2,1199.4,99.0229]
[1610047123337,4.00959,1200.5,1200.2,4.00959]
[1610047123537,7.052,1202.2,1200.2,4.00959]
[1610047123937,7.052,1202.2,1200.2,6.86179]
[1610047125440,4.00959,1200.8,1200.7,4.00959]
[1610047125640,7.052,1202.2,1200.7,4.00959]
[1610047127147,7.052,1202.2,1200.7,7.18889]
[1610047127347,7.052,1202.2,1201.4,4.00959]
[1610047127544,2.4739,1203.0,1201.4,4.00959]
[1610047127747,6.1114,1203.4,1201.4,36.62299]
[1610047128145,89.85575326,1203.6,1201.4,36.62299]
[1610047128947,89.85575326,1203.6,1201.4,6.62299]
[1610047129346,4.00959,1202.2,1201.9,4.00959]
[1610047129546,4.00959,1202.2,1201.9,6.12459]
[1610047129746,67.4519,1203.6,1201.9,36.12459]
[1610047129947,22.37866986,1204.0,1201.9,36.12459]
[1610047130447,0.39981176,1204.3,1201.9,36.12459]
[1610047130847,0.39981176,1204.3,1202.4,68.1793]
[1610047131047,0.39981176,1204.3,1202.5,32.389]
[1610047131447,0.39981176,1204.3,1204.0,4.00959]
[1610047131847,0.39981176,1204.3,1204.0,2.9794]
[1610047133449,0.39981176,1204.3,1204.2,4.00959]
[1610047134950,22.74052169,1206.6,1204.2,4.00959]
[1610047135349,4.00959,1204.6,1204.0,2.9794]
[1610047136151,47.2088,1204.1,1204.0,2.9794]
[1610047136550,47.2088,1204.1,1203.6,1.9559]
[1610047136950,47.2088,1204.1,1201.9,61.8039]
[1610047137150,4.00959,1204.6,1201.9,2.115]
[1610047137352,4.00959,1202.6,1201.7,4.00959]
[1610047137553,4.00959,1202.6,1201.9,2.7979]
[1610047137757,2.9301,1205.0,1201.9,2.7979]
[1610047137952,65.928,1203.1,1201.9,2.7979]
[1610047139852,2.9301,1205.0,1201.9,2.7979]
[1610047140056,51.6095,1204.8,1201.9,2.7979]
[1610047140452,51.6095,1204.8,1201.9,32.7979]
[1610047141354,51.6095,1204.8,1203.7,4.00959]
[1610047141554,51.6095,1204.8,1201.9,2.7979]
[1610047141754,3.0213,1205.3,1203.7,3.0299]
[1610047141955,58.1691,1205.3,1203.7,3.0299]
[1610047142157,55.1478,1205.3,1203.7,3.0299]
[1610047142955,15.23854114,1205.9,1203.7,3.0299]
[1610047143155,59.4657,1204.5,1203.7,3.0299]
[1610047143355,4.00959,1203.8,1203.7,3.0299]
[1610047143955,11.04569,1203.8,1203.7,3.0299]
[1610047144556,4.00959,1203.8,1203.7,3.0299]
[1610047144756,4.00959,1203.8,1201.4,53.3677]
[1610047144956,4.00959,1203.8,1198.4,30.0]
[1610047145156,57.222,1203.2,1200.1,63.876]
[1610047145359,4.00959,1202.2,1201.8,4.00959]
[1610047145557,57.222,1203.2,1201.8,4.00959]
[1610047145856,2.0322,1204.6,1200.1,2.1741]
[1610047146059,63.0296,1203.0,1200.1,2.1741]
[1610047146256,2.0322,1204.6,1200.1,2.1741]
[1610047146456,47.0584,1202.9,1200.1,2.1741]
[1610047146656,2.0322,1204.6,1200.1,2.1741]
[1610047146857,50.1625,1202.3,1200.1,2.1741]
[1610047147458,3.0605,1204.3,1200.1,2.1741]
[1610047147658,69.3291,1201.2,1200.1,2.1741]
[1610047147859,55.0309,1201.2,1200.1,2.1741]
[1610047149459,4.00959,1200.9,1200.1,6.18369]
[1610047149660,59.5295,1202.0,1200.1,6.18369]
[1610047150260,2.0902,1203.8,1200.1,6.18369]
[1610047150462,68.2359,1203.3,1200.1,36.18369]
[1610047150660,15.25658591,1204.4,1200.1,36.18369]
[1610047150860,15.25658591,1204.4,1200.4,64.8647]
[1610047151059,15.25658591,1204.4,1200.5,32.5637]
[1610047151462,15.25658591,1204.4,1203.4,4.00959]
[1610047151665,53.8509,1204.5,1203.4,4.00959]
[1610047151862,53.8509,1204.5,1203.0,2.2166]
[1610047153363,4.00959,1203.6,1203.0,6.22619]
[1610047154965,59.923,1204.9,1203.0,6.22619]
[1610047155367,4.00959,1203.7,1203.0,2.2166]
[1610047155771,61.6658,1203.3,1203.0,2.2166]
[1610047156670,61.6658,1203.3,1200.9,55.9128]
[1610047156870,4.00959,1203.7,1200.5,2.5637]
[1610047157069,59.7931,1202.9,1200.1,2.1741]
[1610047157471,4.00959,1202.8,1201.9,4.00959]
[1610047157669,2.5293,1203.8,1201.9,4.00959]
[1610047157870,65.5391,1203.5,1201.9,5.98789]
[1610047159370,4.00959,1202.9,1202.8,4.00959]
[1610047159571,65.5391,1203.5,1201.9,1.9783]
[1610047161375,4.00959,1202.0,1201.9,1.9783]
[1610047162976,4.00959,1202.0,1199.8,63.1141]
[1610047163376,63.5707,1202.1,1201.1,4.00959]
[1610047163576,63.5707,1202.1,1201.1,6.08919]
[1610047163776,2.343,1204.1,1201.1,6.08919]
[1610047163978,66.2722,1203.8,1201.1,6.08919]
[1610047164375,66.2722,1203.8,1201.1,36.08919]
[1610047165378,4.00959,1203.4,1202.6,4.00959]
[1610047166383,50.0397,1204.5,1202.6,4.00959]
[1610047166784,50.0397,1204.5,1202.6,6.64009]
[1610047167387,4.00959,1202.8,1202.6,6.64009]
[1610047167586,50.0397,1204.5,1202.6,6.64009]
[1610047169386,4.00959,1203.8,1203.3,4.00959]
[1610047171189,2.1233,1204.7,1203.3,4.00959]
[1610047171388,4.00959,1204.7,1204.1,4.00959]
[1610047171587,13.03319,1204.7,1203.3,2.2999]
[1610047171791,4.00959,1204.7,1203.3,2.2999]
[1610047171988,50.8856,1204.4,1203.3,2.2999]
[1610047173488,4.00959,1203.4,1203.3,2.2999]
[1610047173691,4.00959,1203.4,1202.8,4.00959]
[1610047174395,4.00959,1203.4,1202.6,2.6305]
[1610047174591,4.00959,1203.4,1200.8,50.891]
[1610047175391,4.00959,1202.2,1202.0,4.00959]
[1610047176193,69.5456,1203.5,1202.0,4.00959]
[1610047176394,69.5456,1203.5,1202.0,7.19219]
[1610047177394,4.00959,1202.8,1202.4,4.00959]
[1610047177696,4.00959,1202.8,1202.0,3.1826]
[1610047179498,69.5456,1203.5,1202.2,4.00959]
[1610047180498,3.1633,1203.9,1202.2,4.00959]
[1610047181099,2.4595,1204.5,1202.2,4.00959]
[1610047181398,4.00959,1203.5,1203.4,4.00959]
[1610047181600,4.00959,1203.5,1201.6,98.6923]
[1610047181800,4.00959,1203.5,1201.6,68.6923]
[1610047182402,4.00959,1203.5,1201.7,30.0]
[1610047182601,4.00959,1203.5,1201.7,32.1441]
[1610047183601,4.00959,1203.5,1203.1,4.00959]
[1610047185305,2.3181,1204.4,1203.1,4.00959]
[1610047185504,4.00959,1203.3,1203.0,2.0423]
[1610047187607,4.00959,1203.1,1203.0,2.0423]
[1610047189010,4.00959,1203.1,1200.2,6.3905]
[1610047189609,4.00959,1202.4,1202.1,4.00959]
[1610047189811,4.00959,1202.4,1200.1,35.8342]
[1610047190211,4.00959,1202.4,1200.1,5.8342]